fUSD/lending_fUSD_20250105
["ID","MTS","AMOUNT","RATE_DAILY","PERIOD"]
[347779025,1736103041039,-217.84722416,9.999e-05,2]
[347779026,1736103041049,-795.210006,9.999e-05,2]
[347779027,1736103041060,-500.0,9.999e-05,2]
[347779028,1736103041070,-1284.85,9.999e-05,2]
[347779029,1736103041080,-500.0,9.999e-05,2]
[347779030,1736103041090,-1730.75,9.999e-05,2]
[347779031,1736103041100,-642.913233,9.999e-05,2]
[347779032,1736103041111,-162.222645,9.999e-05,2]
[347779033,1736103041122,-687.23,9.999e-05,2]
[347779034,1736103041132,-514.04,9.999e-05,2]
[347779035,1736103041141,-1931.78,9.999e-05,2]
[347779036,1736103041151,-500.0,9.999e-05,2]
[347779037,1736103041160,-500.0,9.999e-05,2]
[347779038,1736103041169,-514.31,9.999e-05,2]
[347779039,1736103041179,-500.0,9.999e-05,2]
[347779040,1736103041192,-500.0,9.999e-05,2]
[347779041,1736103041201,-500.0,9.999e-05,2]
[347779042,1736103041211,-500.0,9.999e-05,2]
[347779043,1736103041221,-500.0,9.999e-05,2]
[347779044,1736103041232,-500.0,9.999e-05,2]
[347779045,1736103041243,-1810.87,9.999e-05,2]
[347779046,1736103041253,-697.54,9.999e-05,2]
[347779047,1736103041263,-790.77,9.999e-05,2]
[347779048,1736103041272,-500.0,9.999e-05,2]
[347779049,1736103041282,-500.0,9.999e-05,2]
[347779050,1736103041291,-500.0,9.999e-05,2]
[347779051,1736103041300,-500.0,9.999e-05,2]
[347779052,1736103041309,-500.0,9.999e-05,2]
[347779053,1736103041319,-500.0,9.999e-05,2]
[347779054,1736103041328,-822.61,9.999e-05,2]
[347779055,1736103041337,-500.0,9.999e-05,2]
[347779056,1736103041346,-500.0,9.999e-05,2]
[347779057,1736103041355,-500.0,9.999e-05,2]
[347779058,1736103041364,-516.78,9.999e-05,2]
[347779059,1736103041373,-500.0,9.999e-05,2]
[347779060,1736103041383,-910.99,9.999e-05,2]
[347779061,1736103041392,-1128.36,9.999e-05,2]
[347779062,1736103041401,-807.45,9.999e-05,2]
[347779063,1736103041411,-1090.33,9.999e-05,2]
[347779064,1736103041420,-500.0,9.999e-05,2]
[347779065,1736103041430,-780.48,9.999e-05,2]
[347779066,1736103041439,-1664.66,9.999e-05,2]
[347779067,1736103041448,-2152.09,9.999e-05,2]
[347779068,1736103041459,-545.21,9.999e-05,2]
[347779069,1736103041468,-617.54,9.999e-05,2]
[347779070,1736103041478,-1115.15,9.999e-05,2]
[347779071,1736103041487,-500.0,9.999e-05,2]
[347779072,1736103041497,-631.73,9.999e-05,2]
[347779073,1736103041507,-2004.35,9.999e-05,2]
[347779074,1736103041516,-500.0,9.999e-05,2]
[347779075,1736103041525,-906.64,9.999e-05,2]
[347779076,1736103041535,-680.52,9.999e-05,2]
[347779077,1736103041545,-1427.5,9.999e-05,2]
[347779078,1736103041554,-782.8,9.999e-05,2]
[347779079,1736103041563,-1891.76,9.999e-05,2]
[347779080,1736103041573,-500.0,9.999e-05,2]
[347779081,1736103041582,-1240.0,0.0001,2]
[347779082,1736103041592,-150.0,0.0001,2]
[347779083,1736103041603,-5077266.16552857,0.0001,2]
[347779084,1736103041613,-151.24709819,0.0001,2]
[347779085,1736103041623,-2621.6057294,0.0001,2]
[347779086,1736103041632,-8032.19829504,0.0001,2]
[347779087,1736103041641,-101307.54724921,0.0001,2]
[347779088,1736103041650,-3142239.35078851,0.0001,2]
[347779089,1736103041658,-1000.0,0.0001,2]
[347779090,1736103041667,-1000.0,0.0001,2]
[347779091,1736103041676,-1506.09451437,0.0001,2]
[347779092,1736103041687,-369540.76205181,0.0001,2]
[347779093,1736103041696,-994.8549,0.0001,2]
[347779094,1736103041706,-200.0,0.0001,2]
[347779095,1736103041715,-1000.0,0.0001,2]
[347779096,1736103041726,-4452.97886717,0.0001,2]
[347779097,1736103041736,-1129.73580448,0.0001,2]
[347779098,1736103041747,-25000.0,0.0001,2]
[347779099,1736103041757,-150.0,0.0001,2]
[347779100,1736103041767,-150.0,0.0001,2]
[347779101,1736103041777,-569.41,0.0001,2]
[347779102,1736103041787,-3000.0,0.0001,2]
[347779103,1736103041799,-7532.60762884,0.0001,2]
[347779104,1736103041808,-322.10259043,0.0001,2]
[347779105,1736103041817,-18781.98501818,0.0001,2]
[347779106,1736103041827,-20935.17038981,0.0001,2]
[347779107,1736103041836,-20935.17038969,0.0001,2]
[347779108,1736103041845,-20935.17038969,0.0001,2]
[347779109,1736103041855,-20935.17038969,0.0001,2]
[347779110,1736103041865,-20935.17038969,0.0001,2]
[347779111,1736103041874,-20935.17038969,0.0001,2]
[347779112,1736103041883,-20935.17038969,0.0001,2]
[347779113,1736103041893,-20935.17038969,0.0001,2]
[347779114,1736103041903,-231.9874475,0.00010003,2]
[347779115,1736103041912,-7267.5508493,0.0001001,2]
[347779116,1736103041921,-288.42,0.00010018,2]
[347779117,1736103041931,-322.10259032,0.00010049,2]
[347779118,1736103041940,-20935.17038969,0.00010072,2]
[347779119,1736103041950,-1000.0,0.000101,2]
[347779120,1736103041961,-25000.0,0.000101,2]
[347779121,1736103041971,-322.10259032,0.00010124,2]
[347779122,1736103041980,-150.0,0.00010135,2]
[347779123,1736103041989,-204.92,0.00010135,2]
[347779124,1736103041999,-199.236,0.00010135,2]
[347779125,1736103042008,-154.144,0.00010135,2]
[347779126,1736103042017,-217.46,0.00010136,2]
[347779127,1736103042026,-553.36,0.00010137,2]
[347779128,1736103042035,-403.55,0.00010137,2]
[347779129,1736103042044,-500.0,0.00010168,2]
[347779130,1736103042054,-413.02782862,0.0001018,2]
[347779131,1736103042063,-322.10259032,0.00010198,2]
[347779132,1736103042072,-1000.0,0.00010199,2]
[347779133,1736103042082,-15557.66324309,0.000102,2]
[347779134,1736103042091,-20935.17038969,0.00010214,2]
[347779135,1736103042101,-777.09,0.00010229,2]
[347779136,1736103042110,-1029.96,0.00010229,2]
[347779137,1736103042119,-1239.98,0.0001023,2]
[347779138,1736103042129,-500.0,0.0001023,2]
[347779139,1736103042139,-509.56,0.0001023,2]
[347779140,1736103042148,-741.25,0.0001023,2]
[347779141,1736103042158,-618.04,0.0001023,2]
[347779142,1736103042167,-615.62,0.0001023,2]
[347779143,1736103042177,-1000.0,0.0001023,2]
[347779144,1736103042190,-500.0,0.0001023,2]
[347779145,1736103042200,-500.0,0.0001023,2]
[347779146,1736103042209,-500.0,0.00010271,2]
[347779147,1736103042219,-500.0,0.00010271,2]
[347779148,1736103042230,-500.0,0.00010271,2]
[347779149,1736103042239,-500.0,0.00010271,2]
[347779150,1736103042249,-500.0,0.00010272,2]
[347779151,1736103042258,-500.0,0.00010272,2]
[347779152,1736103042269,-500.0,0.00010272,2]
[347779153,1736103042279,-500.0,0.00010272,2]
[347779154,1736103042288,-612.92,0.00010272,2]
[347779155,1736103042298,-500.0,0.00010272,2]
[347779156,1736103042307,-500.0,0.00010272,2]
[347779157,1736103042317,-500.0,0.00010272,2]
[347779158,1736103042326,-500.0,0.00010272,2]
[347779159,1736103042336,-500.0,0.00010272,2]
[347779160,1736103042347,-500.0,0.00010272,2]
[347779161,1736103042358,-592.62,0.00010272,2]
[347779162,1736103042368,-500.0,0.00010272,2]
[347779163,1736103042379,-500.0,0.00010272,2]
[347779164,1736103042388,-500.0,0.00010272,2]
[347779165,1736103042397,-500.0,0.00010272,2]
[347779166,1736103042407,-500.0,0.00010272,2]
[347779167,1736103042417,-500.0,0.00010272,2]
[347779168,1736103042426,-500.0,0.00010272,2]
[347779169,1736103042437,-500.0,0.00010272,2]
[347779170,1736103042447,-500.0,0.00010272,2]
[347779171,1736103042456,-527.57,0.00010272,2]
[347779172,1736103042466,-500.0,0.00010272,2]
[347779173,1736103042475,-500.0,0.00010272,2]
[347779174,1736103042485,-500.0,0.00010272,2]
[347779175,1736103042494,-500.0,0.00010272,2]
[347779176,1736103042503,-500.0,0.00010272,2]
[347779177,1736103042513,-500.0,0.00010272,2]
[347779178,1736103042522,-500.0,0.00010272,2]
[347779179,1736103042531,-474.34275354,0.00010272,2]
[347779180,1736103042540,-500.0,0.00010272,2]
[347779181,1736103042550,-500.0,0.00010272,2]
[347779182,1736103042559,-500.0,0.00010272,2]
[347779183,1736103042568,-500.0,0.00010272,2]
[347779184,1736103042578,-500.0,0.00010272,2]
[347779185,1736103042587,-500.0,0.00010272,2]
[347779186,1736103042596,-500.0,0.00010272,2]
[347779187,1736103042605,-620.06706437,0.00010272,2]
[347779188,1736103042615,-500.0,0.00010272,2]
[347779189,1736103042624,-500.0,0.00010272,2]
[347779190,1736103042634,-500.0,0.00010272,2]
[347779191,1736103042643,-500.0,0.00010272,2]
[347779192,1736103042653,-500.0,0.00010272,2]
[347779193,1736103042662,-500.0,0.00010272,2]
[347779194,1736103042673,-500.0,0.00010272,2]
[347779196,1736103042683,-500.0,0.00010272,2]
[347779197,1736103042693,-500.0,0.00010272,2]
[347779198,1736103042702,-500.0,0.00010272,2]
[347779199,1736103042712,-500.0,0.00010272,2]
[347779200,1736103042721,-574.69,0.00010272,2]
[347779201,1736103042731,-500.0,0.00010272,2]
[347779202,1736103042740,-500.0,0.00010272,2]
[347779203,1736103042749,-500.0,0.00010272,2]
[347779204,1736103042759,-500.0,0.00010272,2]
[347779205,1736103042769,-500.0,0.00010272,2]
[347779206,1736103042778,-500.0,0.00010272,2]
[347779207,1736103042787,-500.0,0.00010272,2]
[347779208,1736103042798,-500.0,0.00010272,2]
[347779209,1736103042807,-500.0,0.00010272,2]
[347779211,1736103042818,-500.0,0.00010272,2]
[347779212,1736103042828,-500.0,0.00010272,2]
[347779213,1736103042838,-500.0,0.00010272,2]
[347779214,1736103042848,-500.0,0.00010272,2]
[347779215,1736103042858,-500.0,0.00010272,2]
[347779216,1736103042867,-500.0,0.00010272,2]
[347779217,1736103042877,-500.0,0.00010272,2]
[347779218,1736103042886,-500.0,0.00010272,2]
[347779219,1736103042895,-500.0,0.00010272,2]
[347779220,1736103042904,-500.0,0.00010272,2]
[347779221,1736103042914,-500.0,0.00010272,2]
[347779222,1736103042923,-500.0,0.00010272,2]
[347779223,1736103042933,-531.46,0.00010272,2]
[347779224,1736103042942,-500.0,0.00010272,2]
[347779225,1736103042951,-500.0,0.00010272,2]
[347779226,1736103042960,-500.0,0.00010272,2]
[347779227,1736103042970,-500.0,0.00010272,2]
[347779228,1736103042980,-500.0,0.00010272,2]
[347779229,1736103042990,-500.0,0.00010272,2]
[347779230,1736103042999,-500.0,0.00010272,2]
[347779231,1736103043009,-500.0,0.00010272,2]
[347779232,1736103043019,-500.0,0.00010272,2]
[347779233,1736103043028,-500.0,0.00010272,2]
[347779234,1736103043039,-500.0,0.00010272,2]
[347779235,1736103043048,-500.0,0.00010272,2]
[347779236,1736103043057,-500.0,0.00010272,2]
[347779237,1736103043068,-500.0,0.00010272,2]
[347779238,1736103043077,-500.0,0.00010272,2]
[347779239,1736103043087,-500.0,0.00010272,2]
[347779240,1736103043097,-500.0,0.00010272,2]
[347779241,1736103043108,-500.0,0.00010272,2]
[347779242,1736103043118,-500.0,0.00010272,2]
[347779243,1736103043128,-500.0,0.00010272,2]
[347779244,1736103043137,-500.0,0.00010272,2]
[347779245,1736103043148,-500.0,0.00010272,2]
[347779246,1736103043157,-536.12,0.00010272,2]
[347779247,1736103043168,-500.0,0.00010272,2]
[347779248,1736103043181,-500.0,0.00010272,2]
[347779249,1736103043192,-500.0,0.00010272,2]
[347779250,1736103043203,-500.0,0.00010272,2]
[347779251,1736103043212,-562.88135618,0.00010272,2]
[347779252,1736103043222,-500.0,0.00010272,2]
[347779253,1736103043229,-500.0,0.00010272,2]
[347779254,1736103043236,-500.0,0.00010272,2]
[347779255,1736103043245,-500.0,0.00010272,2]
[347779256,1736103043254,-500.0,0.00010272,2]
[347779257,1736103043263,-506.23,0.00010272,2]
[347779258,1736103043272,-500.0,0.00010272,2]
[347779259,1736103043282,-500.0,0.00010272,2]
[347779261,1736103043291,-500.0,0.00010272,2]
[347779263,1736103043300,-500.0,0.00010272,2]
[347779265,1736103043310,-500.0,0.00010272,2]
[347779267,1736103043319,-500.0,0.00010272,2]
[347779269,1736103043328,-500.0,0.00010272,2]
[347779271,1736103043337,-500.0,0.00010272,2]
[347779272,1736103043346,-500.0,0.00010272,2]
[347779274,1736103043356,-500.0,0.00010272,2]
[347779275,1736103043365,-500.0,0.00010272,2]
[347779276,1736103043374,-500.0,0.00010272,2]
[347779277,1736103043384,-500.0,0.00010272,2]
[347779278,1736103043393,-500.0,0.00010272,2]
[347779279,1736103043402,-500.0,0.00010272,2]
[347779280,1736103043411,-500.0,0.00010272,2]
[347779281,1736103043421,-500.0,0.00010272,2]
[347779282,1736103043431,-500.0,0.00010272,2]
[347779283,1736103043440,-500.0,0.00010272,2]
[347779284,1736103043450,-500.0,0.00010272,2]
[347779285,1736103043459,-500.0,0.00010272,2]
[347779286,1736103043469,-500.0,0.00010272,2]
[347779287,1736103043479,-500.0,0.00010272,2]
[347779288,1736103043489,-500.0,0.00010272,2]
[347779289,1736103043499,-500.0,0.00010272,2]
[347779290,1736103043509,-500.0,0.00010272,2]
[347779291,1736103043518,-576.97,0.00010272,2]
[347779292,1736103043528,-500.0,0.00010272,2]
[347779293,1736103043538,-500.0,0.00010272,2]
[347779294,1736103043548,-806.04,0.00010272,2]
[347779295,1736103043558,-548.22930449,0.00010272,2]
[347779296,1736103043568,-615.05,0.00010272,2]
[347779297,1736103043578,-500.0,0.00010272,2]
[347779298,1736103043589,-500.0,0.00010272,2]
[347779299,1736103043599,-500.0,0.00010272,2]
[347779300,1736103043608,-500.0,0.00010272,2]
[347779301,1736103043618,-500.0,0.00010272,2]
[347779302,1736103043628,-1511.62,0.00010272,2]
[347779303,1736103043638,-500.0,0.00010272,2]
[347779304,1736103043648,-500.0,0.00010272,2]
[347779305,1736103043657,-500.0,0.00010272,2]
[347779306,1736103043666,-500.0,0.00010272,2]
[347779307,1736103043676,-625.8,0.00010272,2]
[347779308,1736103043686,-590.14,0.00010272,2]
[347779309,1736103043696,-500.0,0.00010272,2]
[347779310,1736103043706,-500.0,0.00010272,2]
[347779311,1736103043716,-500.0,0.00010272,2]
[347779312,1736103043726,-500.0,0.00010272,2]
[347779313,1736103043735,-500.0,0.00010272,2]
[347779314,1736103043745,-500.0,0.00010272,2]
[347779315,1736103043755,-621.59,0.00010272,2]
[347779316,1736103043764,-958.77,0.00010272,2]
[347779317,1736103043773,-878.65,0.00010272,2]
[347779318,1736103043783,-500.0,0.00010272,2]
[347779319,1736103043792,-1241.97,0.00010272,2]
[347779320,1736103043802,-500.0,0.00010272,2]
[347779321,1736103043811,-500.0,0.00010272,2]
[347779322,1736103043820,-500.0,0.00010272,2]
[347779323,1736103043830,-500.0,0.00010272,2]
[347779324,1736103043839,-752.45,0.00010272,2]
[347779325,1736103043848,-500.0,0.00010272,2]
[347779326,1736103043858,-500.0,0.00010272,2]
[347779327,1736103043867,-1313.29,0.00010272,2]
[347779328,1736103043877,-500.0,0.00010272,2]
[347779329,1736103043888,-500.0,0.00010272,2]
[347779330,1736103043898,-500.0,0.00010272,2]
[347779331,1736103043908,-500.0,0.00010272,2]
[347779332,1736103043918,-500.0,0.00010272,2]
[347779333,1736103043927,-500.0,0.00010272,2]
[347779334,1736103043936,-680.95,0.00010272,2]
[347779335,1736103043945,-500.0,0.00010272,2]
[347779336,1736103043955,-500.0,0.00010272,2]
[347779337,1736103043965,-500.0,0.00010272,2]
[347779338,1736103043974,-500.0,0.00010272,2]
[347779339,1736103043983,-1684.17,0.00010272,2]
[347779340,1736103043993,-500.0,0.00010272,2]
[347779341,1736103044003,-592.46,0.00010272,2]
[347779342,1736103044013,-500.0,0.00010272,2]
[347779343,1736103044022,-500.0,0.00010272,2]
[347779344,1736103044031,-500.0,0.00010272,2]
[347779345,1736103044041,-500.0,0.00010272,2]
[347779346,1736103044051,-848.15,0.00010272,2]
[347779347,1736103044060,-500.0,0.00010272,2]
[347779348,1736103044070,-500.0,0.00010272,2]
[347779349,1736103044079,-500.0,0.00010272,2]
[347779350,1736103044089,-500.0,0.00010272,2]
[347779351,1736103044098,-500.0,0.00010272,2]
[347779352,1736103044108,-500.0,0.00010272,2]
[347779353,1736103044118,-500.0,0.00010272,2]
[347779354,1736103044127,-1136.02,0.00010272,2]
[347779355,1736103044137,-500.0,0.00010272,2]
[347779356,1736103044146,-500.0,0.00010272,2]
[347779357,1736103044155,-500.0,0.00010272,2]
[347779358,1736103044165,-500.0,0.00010272,2]
[347779359,1736103044175,-1677.47,0.00010272,2]
[347779360,1736103044189,-897.34,0.00010272,2]
[347779361,1736103044198,-500.0,0.00010272,2]
[347779362,1736103044209,-500.0,0.00010272,2]
[347779363,1736103044219,-735.56,0.00010272,2]
[347779364,1736103044229,-1437.26,0.00010272,2]
[347779365,1736103044239,-500.0,0.00010272,2]
[347779366,1736103044250,-1062.37,0.00010272,2]
[347779367,1736103044260,-500.0,0.00010272,2]
[347779368,1736103044271,-304.91008358,0.00010272,2]
[347779369,1736103044281,-535.81,0.00010272,2]
[347779370,1736103044291,-500.0,0.00010272,2]
[347779371,1736103044494,-500.0,0.00010272,2]
[347779372,1736103044504,-500.0,0.00010272,2]
[347779373,1736103044513,-500.0,0.00010272,2]
[347779374,1736103044523,-500.0,0.00010272,2]
[347779375,1736103044533,-500.0,0.00010272,2]
[347779376,1736103044543,-500.0,0.00010272,2]
[347779377,1736103044553,-2163.21,0.00010272,2]
[347779378,1736103044562,-2584.43,0.00010272,2]
[347779379,1736103044572,-872.95,0.00010272,2]
[347779380,1736103044582,-1665.48,0.00010272,2]
[347779381,1736103044592,-500.0,0.00010272,2]
[347779382,1736103044602,-500.0,0.00010272,2]
[347779383,1736103044612,-500.0,0.00010272,2]
[347779384,1736103044622,-500.0,0.00010272,2]
[347779385,1736103044633,-500.0,0.00010272,2]
[347779386,1736103044643,-2434.41,0.00010272,2]
[347779387,1736103044652,-500.0,0.00010272,2]
[347779388,1736103044661,-322.10259032,0.00010273,2]
[347779389,1736103044670,-500.0,0.00010273,2]
[347779390,1736103044679,-500.0,0.00010273,2]
[347779391,1736103044689,-338.49326806,0.00010273,2]
[347779392,1736103044699,-500.0,0.00010273,2]
[347779393,1736103044709,-500.0,0.00010273,2]
[347779394,1736103044719,-500.0,0.00010273,2]
[347779395,1736103044729,-818.76,0.00010273,2]
[347779396,1736103044740,-1037.03,0.00010273,2]
[347779397,1736103044750,-500.0,0.00010273,2]
[347779398,1736103044759,-500.0,0.00010273,2]
[347779399,1736103044769,-500.0,0.00010273,2]
[347779400,1736103044779,-500.0,0.00010273,2]
[347779401,1736103044789,-1321.86,0.00010273,2]
[347779402,1736103044798,-156.995149,0.00010273,2]
[347779403,1736103044807,-500.0,0.00010273,2]
[347779404,1736103044817,-1501.02,0.00010273,2]
[347779405,1736103044827,-500.0,0.00010273,2]
[347779406,1736103044837,-567.45,0.00010273,2]
[347779407,1736103044846,-500.0,0.00010273,2]
[347779408,1736103044855,-500.0,0.00010273,2]
[347779409,1736103044864,-583.35,0.00010273,2]
[347779410,1736103044873,-795.210006,0.00010273,2]
[347779411,1736103044883,-1284.85,0.00010273,2]
[347779412,1736103044894,-500.0,0.00010273,2]
[347779413,1736103044903,-1730.75,0.00010273,2]
[347779414,1736103044914,-642.913233,0.00010273,2]
[347779415,1736103044923,-687.23,0.00010273,2]
[347779416,1736103044934,-514.04,0.00010273,2]
[347779417,1736103044943,-1931.78,0.00010273,2]
[347779418,1736103044953,-500.0,0.00010273,2]
[347779419,1736103044963,-500.0,0.00010273,2]
[347779420,1736103044974,-514.31,0.00010273,2]
[347779421,1736103044983,-500.0,0.00010273,2]
[347779422,1736103044993,-500.0,0.00010273,2]
[347779423,1736103045003,-500.0,0.00010273,2]
[347779424,1736103045013,-500.0,0.00010273,2]
[347779425,1736103045023,-1810.87,0.00010273,2]
[347779426,1736103045033,-697.54,0.00010273,2]
[347779427,1736103045043,-790.77,0.00010273,2]
[347779428,1736103045052,-500.0,0.00010273,2]
[347779429,1736103045062,-500.0,0.00010273,2]
[347779430,1736103045071,-500.0,0.00010273,2]
[347779431,1736103045081,-500.0,0.00010273,2]
[347779432,1736103045091,-500.0,0.00010273,2]
[347779433,1736103045100,-500.0,0.00010273,2]
[347779434,1736103045110,-822.61,0.00010273,2]
[347779435,1736103045120,-500.0,0.00010273,2]
[347779436,1736103045129,-500.0,0.00010273,2]
[347779437,1736103045139,-500.0,0.00010273,2]
[347779438,1736103045149,-516.78,0.00010273,2]
[347779439,1736103045159,-500.0,0.00010273,2]
[347779440,1736103045168,-910.99,0.00010273,2]
[347779441,1736103045178,-1128.36,0.00010273,2]
[347779442,1736103045190,-807.45,0.00010273,2]
[347779443,1736103045199,-1090.33,0.00010273,2]
[347779444,1736103045209,-500.0,0.00010273,2]
[347779445,1736103045218,-780.48,0.00010273,2]
[347779446,1736103045227,-1664.66,0.00010273,2]
[347779447,1736103045237,-2152.09,0.00010273,2]
[347779448,1736103045247,-545.21,0.00010273,2]
[347779449,1736103045256,-617.54,0.00010273,2]
[347779450,1736103045266,-1115.15,0.00010273,2]
[347779451,1736103045276,-500.0,0.00010273,2]
[347779452,1736103045285,-631.73,0.00010273,2]
[347779453,1736103045295,-2004.35,0.00010273,2]
[347779454,1736103045305,-500.0,0.00010273,2]
[347779455,1736103045314,-906.64,0.00010273,2]
[347779456,1736103045323,-680.52,0.00010273,2]
[347779457,1736103045333,-1427.5,0.00010273,2]
[347779458,1736103045342,-782.8,0.00010273,2]
[347779459,1736103045351,-1891.76,0.00010273,2]
[347779460,1736103045361,-500.0,0.00010273,2]
[347779461,1736103045371,-4452.97886716,0.00010283,2]
[347779462,1736103045381,-1000.0,0.000103,2]
[347779463,1736103045391,-20935.17038969,0.00010355,2]
[347779464,1736103045401,-1831.21,0.00010417,2]
[347779465,1736103045411,-1200.0,0.00010442,2]
[347779466,1736103045421,-500.0,0.00010442,2]
[347779467,1736103045431,-413.02782862,0.00010471,2]
[347779468,1736103045443,-1636.224,0.00010478,2]
[347779469,1736103045453,-1266.0,0.00010478,2]
[347779470,1736103045463,-158.916,0.00010478,2]
[347779471,1736103045473,-1172.0,0.00010478,2]
[347779472,1736103045483,-9609.0,0.00010478,2]
[347779473,1736103045494,-3893.0,0.00010478,2]
[347779474,1736103045503,-20935.17038969,0.00010497,2]
[347779475,1736103045513,-1848.8712363,0.000105,2]
[347779476,1736103045523,-1612.0,0.000105,2]
[347779477,1736103045533,-777.09,0.00010503,2]
[347779478,1736103045542,-1029.96,0.00010503,2]
[347779479,1736103045552,-1239.98,0.00010504,2]
[347779480,1736103045567,-500.0,0.00010504,2]
[347779481,1736103045577,-509.56,0.00010504,2]
[347779482,1736103045587,-741.25,0.00010504,2]
[347779483,1736103045597,-618.04,0.00010504,2]
[347779484,1736103045606,-615.62,0.00010504,2]
[347779485,1736103045616,-1000.0,0.00010504,2]
[347779486,1736103045626,-500.0,0.00010504,2]
[347779487,1736103045635,-500.0,0.00010504,2]
[347779489,1736103045645,-500.0,0.00010545,2]
[347779490,1736103045655,-500.0,0.00010545,2]
[347779492,1736103045665,-500.0,0.00010545,2]
[347779493,1736103045675,-500.0,0.00010545,2]
[347779494,1736103045685,-500.0,0.00010546,2]
[347779495,1736103045695,-500.0,0.00010546,2]
[347779496,1736103045704,-500.0,0.00010546,2]
[347779497,1736103045714,-500.0,0.00010546,2]
[347779498,1736103045724,-612.92,0.00010546,2]
[347779499,1736103045733,-500.0,0.00010546,2]
[347779500,1736103045743,-500.0,0.00010546,2]
[347779502,1736103045752,-500.0,0.00010546,2]
[347779503,1736103045762,-500.0,0.00010546,2]
[347779504,1736103045771,-500.0,0.00010546,2]
[347779505,1736103045781,-500.0,0.00010546,2]
[347779506,1736103045790,-592.62,0.00010546,2]
[347779507,1736103045800,-178.23,0.00010546,2]
[347779508,1736103045810,-500.0,0.00010546,2]
[347779509,1736103045819,-500.0,0.00010546,2]
[347779510,1736103045830,-500.0,0.00010546,2]
[347779511,1736103045839,-500.0,0.00010546,2]
[347779512,1736103045849,-500.0,0.00010546,2]
[347779513,1736103045858,-500.0,0.00010546,2]
[347779514,1736103045868,-500.0,0.00010546,2]
[347779515,1736103045879,-431.58,0.00010546,2]
[347779516,1736103045888,-527.57,0.00010546,2]
[347779517,1736103045898,-500.0,0.00010546,2]
[347779518,1736103045908,-500.0,0.00010546,2]
[347779519,1736103045918,-500.0,0.00010546,2]
[347779520,1736103045928,-500.0,0.00010546,2]
[347779521,1736103045939,-500.0,0.00010546,2]
[347779522,1736103045948,-500.0,0.00010546,2]
[347779523,1736103045958,-500.0,0.00010546,2]
[347779524,1736103045967,-500.0,0.00010546,2]
[347779525,1736103045976,-500.0,0.00010546,2]
[347779526,1736103045986,-500.0,0.00010546,2]
[347779527,1736103045995,-500.0,0.00010546,2]
[347779528,1736103046005,-500.0,0.00010546,2]
[347779529,1736103046014,-500.0,0.00010546,2]
[347779530,1736103046024,-500.0,0.00010546,2]
[347779531,1736103046033,-500.0,0.00010546,2]
[347779532,1736103046044,-500.0,0.00010546,2]
[347779533,1736103046053,-500.0,0.00010546,2]
[347779534,1736103046062,-500.0,0.00010546,2]
[347779535,1736103046072,-500.0,0.00010546,2]
[347779536,1736103046081,-500.0,0.00010546,2]